bitfinex/quotes_ETHUSD_20250511
["timestamp","ask_amount","ask_price","bid_price","bid_amount"]
[1746994852058,3.98859788,2507.2,2506.8,1.26449767]
[1746994853956,3.98842729,2507.3,2507.2,11.988597]
[1746994854254,3.98842729,2507.3,2507.2,8.0]
[1746994855452,0.05,2507.4,2507.3,11.988427]
[1746994855625,0.05,2507.4,2507.0,0.8254]
[1746994855957,0.05,2507.4,2507.3,8.0]
[1746994856161,0.05,2507.4,2507.3,16.55244]
[1746994856322,0.05,2507.4,2507.3,18.480984]
[1746994857326,0.05,2507.4,2507.3,12.842257]
[1746994858568,0.05,2507.4,2506.8,1.26449767]
[1746994858569,3.98895476,2507.0,2506.6,2.733]
[1746994858860,3.98895476,2507.0,2506.7,8.0]
[1746994859929,3.98895476,2507.0,2506.5,3.5468]
[1746994859930,0.7535,2507.0,2506.5,3.5468]
[1746994860145,3.98901418,2506.9,2506.6,8.0]
[1746994861400,0.7535,2507.0,2506.5,2.732]
[1746994861571,3.99022978,2506.2,2505.7,3.5468]
[1746994861739,3.98999418,2506.3,2505.8,7.674756]
[1746994861934,3.99014336,2506.2,2505.8,8.35468]
[1746994862161,3.98999418,2506.3,2505.4,3.5418]
[1746994862162,3.99100513,2505.7,2505.4,3.5418]
[1746994862474,3.99121931,2505.5,2505.4,2.727]
[1746994862960,3.9915326,2505.4,2505.1,14.352]
[1746994863337,3.99129566,2505.5,2505.2,8.0]
[1746994863874,3.9914187,2505.4,2505.2,8.0]
[1746994864587,3.99153793,2505.3,2505.0,8.0]
[1746994864794,3.99153793,2505.3,2505.0,9.15418]
[1746994865273,3.99181963,2505.2,2504.8,0.8148]
[1746994865486,3.99181963,2505.2,2505.1,0.10378916]
[1746994865783,3.99158802,2505.3,2505.0,8.0]
[1746994865939,0.7681,2505.4,2505.1,0.10378916]
[1746994866138,3.99161427,2505.3,2505.1,0.10378916]
[1746994866482,3.99205845,2505.0,2504.8,8.0]
[1746994867290,3.99177572,2505.2,2504.8,9.0728]
[1746994867648,10.68687598,2505.9,2504.8,9.0728]
[1746994867990,3.9913433,2505.5,2504.9,0.03991812]
[1746994868286,3.99106292,2505.6,2504.8,9.0728]
[1746994868590,3.99137624,2505.5,2504.8,9.0728]
[1746994868890,3.99138482,2505.4,2504.9,1.18008]
[1746994869868,3.99129464,2505.5,2504.9,1.18008]
[1746994870288,3.99139474,2505.4,2504.9,1.18008]
[1746994870488,3.9919614,2505.1,2504.8,8.0]
[1746994870867,3.99177056,2505.2,2504.8,8.0]
[1746994873453,3.96919596,2505.2,2504.3,0.8252]
[1746994873654,0.8165,2504.8,2504.1,17.9552]
[1746994873849,0.8165,2504.8,2504.2,8.0]
[1746994874271,3.99301024,2504.4,2504.2,8.0]
[1746994874502,3.99289885,2504.5,2504.4,11.99301]
[1746994874661,3.99289885,2504.5,2504.1,17.9552]
[1746994874864,3.99329127,2504.2,2504.1,0.05]
[1746994875113,3.99329127,2504.2,2504.1,0.1565839]
[1746994875433,3.99329127,2504.2,2504.1,0.05]
[1746994875729,2.77868003,2504.8,2504.1,0.05]
[1746994876019,3.99290454,2504.5,2504.1,0.1565839]
[1746994876225,3.99303047,2504.4,2504.1,0.05]
[1746994876414,3.99313181,2504.3,2504.2,0.10885402]
[1746994876787,3.99303413,2504.4,2504.2,0.10885402]
[1746994877183,3.99287018,2504.5,2504.2,0.10885402]
[1746994877383,3.99261675,2504.7,2504.2,0.10885402]
[1746994877583,3.99267453,2504.6,2504.2,0.10885402]
[1746994878020,3.99257521,2504.7,2504.2,0.10885402]
[1746994879201,3.99269584,2504.6,2504.3,0.8086]
[1746994879523,3.99269584,2504.6,2504.4,0.10890338]
[1746994879729,3.99281293,2504.5,2504.4,0.10890338]
[1746994880031,3.99281293,2504.5,2504.4,8.10890338]
[1746994888539,3.99281293,2504.5,2504.4,0.10890338]
[1746994888954,3.99301801,2504.4,2504.1,0.05]
[1746994889415,3.99270987,2504.6,2504.1,0.05]
[1746994889607,6.77114641,2504.8,2504.1,0.08993091]
[1746994890030,3.99250897,2504.7,2504.1,0.08993091]
[1746994890354,2.77868003,2504.8,2504.1,0.05]
[1746994890646,3.99277735,2504.6,2504.1,0.05]
[1746994892631,2.77868003,2504.8,2504.1,0.08992872]
[1746994892824,3.99281018,2504.6,2504.1,0.05]
[1746994894349,3.99258463,2504.7,2504.1,0.08992873]
[1746994894735,3.99268578,2504.6,2504.1,0.08992873]
[1746994895628,3.99268578,2504.6,2504.2,0.11171643]
[1746994896619,3.99297236,2504.4,2504.3,8.0]
[1746994896942,3.99297236,2504.4,2504.3,0.10105947]
[1746994897357,3.99329127,2504.2,2504.1,0.05]
[1746994897708,3.99329127,2504.2,2504.1,0.15174995]
[1746994898018,3.99329127,2504.2,2504.1,0.05]
[1746994898231,3.99329127,2504.2,2504.1,0.15174995]
[1746994898437,3.99329127,2504.2,2504.1,0.05]
[1746994898632,3.99329127,2504.2,2504.1,0.15229252]
[1746994898840,3.99329127,2504.2,2504.1,0.05]
[1746994899249,3.99329127,2504.2,2504.1,0.15229252]
[1746994903476,10.97423389,2504.2,2504.1,0.15229252]
[1746994903986,10.97423389,2504.2,2504.1,0.05]
[1746994904576,7.00503793,2504.2,2504.1,0.05]
[1746994907266,6.17713793,2504.2,2504.1,0.05]
[1746994907648,6.17713793,2504.2,2504.1,0.14396955]
[1746994907877,6.17713793,2504.2,2504.1,0.05]
[1746994908065,5.9554713,2504.2,2504.1,0.05]
[1746994908375,3.99329127,2504.2,2504.1,0.14396955]
[1746994909145,7.96248723,2504.2,2504.1,0.14396955]
[1746994909350,8.79038723,2504.2,2504.1,0.14396955]
[1746994909750,9.01160124,2504.2,2504.1,0.05]
[1746994910172,9.01160124,2504.2,2504.1,0.14396955]
[1746994914289,10.97378127,2504.2,2504.1,0.14396955]
[1746994914587,10.97378127,2504.2,2504.1,0.05]
[1746994916702,7.00458531,2504.2,2504.1,0.05]
[1746994917001,3.99297236,2504.4,2504.3,8.0]
[1746994917201,0.8142,2504.7,2504.1,0.05]
[1746994917202,3.99313181,2504.3,2504.1,0.14697863]
[1746994917356,3.99313181,2504.3,2504.1,0.05]
[1746994917562,3.99313181,2504.3,2504.2,0.09697863]
[1746994918199,3.99329127,2504.2,2504.1,0.05]
[1746994920704,6.7076713,2504.2,2504.1,0.05]
[1746994920937,7.47868627,2504.2,2504.1,0.05]
[1746994925841,6.72648627,2504.2,2504.1,0.05]
[1746994926047,6.97488627,2504.2,2504.1,0.05]
[1746994931659,6.93130624,2504.2,2504.1,0.05]
[1746994932060,4.21430624,2504.2,2504.1,0.05]
[1746994932865,5.01270624,2504.2,2504.1,0.05]
[1746994935367,6.97488627,2504.2,2504.1,0.05]
[1746994938156,9.69088627,2504.2,2504.1,0.05]
[1746994939353,3.99488654,2503.2,2503.1,0.05]
[1746994939532,13.3990825,2503.2,2503.1,0.05]
[1746994939881,13.62009747,2503.2,2503.1,0.05]
[1746994940639,16.9343775,2503.2,2503.1,0.05]
[1746994941749,16.3843775,2503.2,2503.1,0.05]
[1746994943673,10.1472775,2503.2,2503.1,0.05]
[1746994943973,15.5822775,2503.2,2503.1,0.05]
[1746994944385,15.36126253,2503.2,2503.1,0.05]
[1746994946003,3.99488654,2503.2,2503.1,0.05]
[1746994946563,11.26536253,2503.2,2503.1,0.05]
[1746994946759,11.48588203,2503.2,2503.1,0.05]
[1746994949205,3.99648309,2502.2,2502.1,0.8603]
[1746994949585,3.99648309,2502.2,2502.1,0.93802149]
[1746994950363,3.99648309,2502.2,2502.1,0.8603]
[1746994953478,3.99637908,2502.3,2502.1,0.8603]
[1746994953701,4.67718003,2502.6,2502.1,0.8603]
[1746994954206,1.96218003,2502.6,2502.1,0.8603]
[1746994954597,3.99633308,2502.3,2502.1,0.8603]
[1746994954795,3.99633308,2502.3,2502.2,26.696832]
[1746994954982,3.99633308,2502.3,2502.2,26.78096498]
[1746994955171,3.99633308,2502.3,2502.2,11.57752948]
[1746994955372,3.93316626,2502.4,2502.3,8.0]
[1746994955577,3.87016884,2502.4,2502.2,0.8103]
[1746994955797,3.87016884,2502.4,2502.3,0.07691607]
[1746994956107,3.99601704,2502.5,2502.3,0.75]
[1746994956403,3.99601704,2502.5,2502.3,0.82691607]
[1746994958224,3.99616368,2502.4,2502.3,0.82691607]
[1746994959788,3.99616368,2502.4,2502.3,0.07691607]
[1746994960017,3.99616368,2502.4,2502.1,0.05]
[1746994960018,3.99648309,2502.2,2502.1,0.05]
[1746994960346,7.96567905,2502.2,2502.1,0.05]
[1746994960647,8.75237905,2502.2,2502.1,0.05]
[1746994961230,9.30237905,2502.2,2502.1,0.05]
[1746994961402,11.26455908,2502.2,2502.1,0.05]
[1746994963792,11.48476517,2502.2,2502.1,0.05]
[1746994963989,16.91276517,2502.2,2502.1,0.05]
[1746994966055,16.69255908,2502.2,2502.1,0.05]
[1746994967633,16.91324831,2502.2,2502.1,0.05]
[1746994968238,10.93524831,2502.2,2502.1,0.05]
[1746994968436,6.17935235,2502.2,2502.1,0.05]
[1746994968949,4.21717232,2502.2,2502.1,0.05]
[1746994969430,0.22068923,2502.2,2502.1,0.05]
[1746994969612,0.22068923,2502.2,2502.1,0.9267327]
[1746994970148,0.22068923,2502.2,2502.1,1.81940597]
[1746994970642,0.22068923,2502.2,2502.1,9.81940597]
[1746994970845,0.22068923,2502.2,2502.1,32.88608797]
[1746994971159,0.22068923,2502.2,2502.1,9.81940597]
[1746994971667,0.22068923,2502.2,2502.1,10.40936486]
[1746994971806,3.99512569,2503.1,2502.3,0.7951]
[1746994972007,3.99512569,2503.1,2502.5,0.7951]
[1746994972232,1.96218003,2503.5,2502.7,0.7951]
[1746994972431,1.96218003,2503.7,2502.8,0.83505042]
[1746994972633,3.99455453,2503.5,2502.8,0.83505042]
[1746994972846,3.99429567,2503.6,2502.8,0.7951]
[1746994973070,3.99429567,2503.6,2503.0,0.7951]
[1746994973386,6.68119596,2504.3,2503.3,0.7951]
[1746994973664,3.99439006,2503.6,2503.3,0.7951]
[1746994974565,3.99410429,2503.7,2503.3,0.7951]
[1746994975831,3.95410429,2503.7,2503.3,0.7951]
[1746994977361,3.96919596,2504.1,2503.3,0.7951]
[1746994977565,3.99456738,2503.4,2503.3,0.7951]
[1746994978379,3.99408874,2503.7,2502.7,0.8246]
[1746994978534,3.99465173,2503.4,2503.0,8.0]
[1746994978931,8.74617103,2503.8,2503.0,8.0]
[1746994980329,3.96919596,2504.1,2503.1,0.86454773]
[1746994980647,3.96919596,2504.1,2503.1,0.8246]
[1746994980841,3.9943344,2503.6,2503.2,0.88246]
[1746994981045,3.99448561,2503.5,2503.1,0.8246]
[1746994982082,3.99488654,2503.2,2503.1,0.8246]
[1746994982238,3.99540362,2502.9,2502.7,0.8246]
[1746994984378,3.99552501,2502.8,2502.7,0.8246]
[1746994986978,3.99571167,2502.7,2502.6,0.8272]
[1746994987478,2.79418003,2503.5,2502.6,30.20673]
[1746994987781,3.99521896,2503.0,2502.6,1.98132]
[1746994988138,3.99537418,2502.9,2502.6,1.98132]
[1746994988340,3.99568466,2502.7,2502.6,0.8272]
[1746994989392,3.9955719,2502.8,2502.6,0.8272]
[1746994989546,3.99568466,2502.7,2502.6,0.8272]
[1746994990787,3.99548565,2502.9,2502.6,0.8272]
[1746994990968,3.99554167,2502.8,2502.6,0.8272]
[1746994993784,3.99568466,2502.7,2502.6,0.8272]
[1746994993979,3.99538326,2502.9,2502.6,0.8272]
[1746994994485,3.99477613,2503.3,2502.6,2.0207774]
[1746994994784,13.45264148,2503.5,2502.6,1.98082]
[1746994995081,11.49046145,2503.5,2502.6,1.98082]
[1746994995643,2.709,2503.7,2502.8,0.7644]
[1746994995848,2.78198003,2503.8,2502.7,0.03995149]
[1746994995849,3.99464251,2503.4,2502.7,0.7644]
[1746994996049,3.99475324,2503.3,2502.8,0.7644]
[1746994996281,3.99496189,2503.2,2502.9,0.87644]
[1746994996486,3.99450641,2503.5,2503.0,0.86954767]
[1746994996682,3.99450641,2503.5,2503.1,8.8296]
[1746994996884,3.99428452,2503.6,2503.2,0.8296]
[1746994997050,3.99393855,2503.8,2503.2,0.869544]
[1746994997244,1.96218003,2504.6,2503.8,3.993938]
[1746994997570,4.77829269,2504.9,2504.0,8.0]
[1746994997754,3.96919596,2505.0,2504.0,8.0]
[1746994997755,3.99265771,2504.6,2504.2,0.8296]
[1746994997962,3.99281342,2504.5,2504.2,0.8296]
[1746994998191,3.99235715,2504.8,2504.2,0.8296]
[1746994998389,3.99311489,2504.4,2504.2,0.8296]
[1746994998600,3.99277165,2504.6,2504.2,0.8296]
[1746994998800,3.99277165,2504.6,2504.0,8.0]
[1746994998801,3.99345074,2504.1,2504.0,8.0]
[1746994998969,3.99404249,2503.8,2503.6,0.83]
[1746994999146,3.99465483,2503.4,2503.0,0.83]
[1746994999350,6.69965774,2504.0,2503.1,10.791769]
[1746994999587,2.706,2504.0,2503.1,0.41316491]
[1746994999795,3.99400984,2503.8,2503.2,0.83]
[1746994999994,3.99458056,2503.4,2503.2,0.83]
[1746995000300,2.706,2504.0,2503.2,0.83]
[1746995000301,3.99472696,2503.3,2503.2,0.83]
[1746995003076,4.78779596,2503.8,2503.2,0.83]
[1746995003668,10.7439666,2503.8,2503.2,0.83]
[1746995004293,3.99472696,2503.3,2503.2,0.83]
[1746995004898,3.99433955,2503.6,2503.3,3.994726]
[1746995005083,3.99433955,2503.6,2503.2,1.713]
[1746995005267,8.75082752,2504.1,2503.2,1.713]
[1746995005268,3.99343194,2504.2,2503.4,0.7832]
[1746995005472,0.7629,2504.7,2503.6,8.7832]
[1746995005792,3.99362343,2504.0,2503.8,0.7832]
[1746995006105,3.99338054,2504.2,2503.8,1.66152]
[1746995006308,3.99345878,2504.1,2503.8,1.66152]
[1746995006471,3.99345074,2504.1,2503.8,1.66152]
[1746995006897,7.96154467,2504.8,2503.8,1.66152]
[1746995007098,3.99353347,2504.1,2503.8,1.66152]
[1746995007806,3.99351709,2504.1,2503.8,1.66152]
[1746995008310,3.99337276,2504.2,2503.8,1.66152]
[1746995008984,3.96919596,2504.8,2503.8,1.66152]
[1746995009318,3.99302669,2504.4,2503.8,1.66152]
[1746995009476,3.99319131,2504.3,2503.8,1.66152]
[1746995012488,3.99342904,2504.2,2503.8,0.7832]
[1746995014245,0.7,2504.0,2503.8,0.7832]
[1746995014389,0.7,2504.0,2503.9,8.0]
[1746995014586,0.7,2504.0,2503.9,11.764438]
[1746995014790,0.7629,2505.0,2504.5,0.7946]
[1746995015013,3.99217533,2504.9,2504.5,0.7946]
[1746995015218,3.99249906,2504.7,2504.5,0.7946]
[1746995015595,3.99217533,2504.9,2504.5,0.7946]
[1746995015596,3.99241972,2504.8,2504.5,0.7946]
[1746995016228,3.99217533,2504.9,2504.5,0.7946]
[1746995016392,3.99251966,2504.7,2504.5,0.7946]
[1746995016735,3.99241272,2504.8,2504.5,1.94426]
[1746995021000,7.96093613,2505.2,2504.5,1.94426]
[1746995021001,3.99265351,2504.6,2504.5,1.94426]
[1746995021198,3.99281293,2504.5,2504.4,8.0]
[1746995025601,3.99281293,2504.5,2504.0,0.7512]
[1746995025602,3.99345074,2504.1,2504.0,0.7512]
[1746995025808,3.99333887,2504.2,2504.0,0.7512]
[1746995027508,3.96919596,2504.6,2504.0,0.7512]
[1746995027713,3.99277731,2504.6,2504.1,0.87512]
[1746995027927,3.99290386,2504.5,2504.1,0.87512]
[1746995028428,3.9931419,2504.3,2504.1,0.87512]
[1746995028612,3.99301339,2504.4,2504.1,0.87512]
[1746995031045,3.9931755,2504.3,2504.1,0.87512]
[1746995031261,3.96919596,2504.6,2504.0,0.7512]
[1746995031461,3.96919596,2504.6,2503.9,8.0]
[1746995031462,3.9943449,2503.6,2503.4,0.7554]
[1746995031647,3.9943335,2503.6,2503.4,0.7554]
[1746995032027,3.99440782,2503.5,2503.4,0.7554]
[1746995032432,3.99440782,2503.5,2503.4,3.186964]
[1746995032655,3.99440782,2503.5,2503.4,3.187064]
[1746995032966,3.99440782,2503.5,2503.4,0.7554]
[1746995033134,4.74469596,2504.0,2503.4,0.7554]
[1746995033657,3.99417017,2503.7,2503.4,0.7554]
[1746995035360,3.9943777,2503.6,2503.4,0.7554]
[1746995035961,3.99417486,2503.7,2503.4,0.7554]
[1746995036644,2.699,2504.1,2503.4,0.7554]
[1746995036823,3.99422101,2503.7,2503.4,0.7554]
[1746995037230,3.9939885,2503.8,2503.4,0.7554]
[1746995038321,3.99348235,2504.1,2503.4,0.7554]
[1746995038528,3.99373901,2504.0,2503.4,0.7554]
[1746995039868,3.99378802,2503.9,2503.4,0.7554]
[1746995042222,3.99386734,2503.9,2503.4,0.7554]
[1746995042627,3.99396913,2503.8,2503.4,0.7554]
[1746995042866,3.99434724,2503.6,2503.4,0.7554]
[1746995043169,3.99532769,2503.0,2502.6,0.8323]
[1746995043371,3.96919596,2503.5,2502.7,0.35343]
[1746995043542,0.7716,2503.7,2502.7,0.35343]
[1746995043543,3.99467731,2503.4,2502.7,0.35343]
[1746995043872,4.74079596,2503.7,2502.8,0.8323]
[1746995044034,3.99481038,2503.3,2502.8,0.87225042]
[1746995044237,3.99465323,2503.4,2502.8,0.87225042]
[1746995044570,3.99477583,2503.3,2502.8,0.87225042]
[1746995044873,3.99490312,2503.2,2502.8,1.79481846]
[1746995046774,3.99440744,2503.6,2503.2,3.994903]
[1746995046968,3.99440782,2503.5,2502.8,1.79481846]
[1746995047155,3.99459891,2503.4,2502.8,1.79481846]
[1746995047676,4.74079596,2503.7,2502.8,1.75486804]
[1746995047875,3.99533984,2503.0,2502.6,8.8323]
[1746995048280,3.99568466,2502.7,2502.6,0.8323]
[1746995048577,3.99557152,2502.8,2502.6,8.8323]
[1746995049182,3.99568466,2502.7,2502.6,8.0]
[1746995049348,3.99560548,2502.8,2502.6,8.0]
[1746995049550,3.99560548,2502.8,2502.7,2.230103]
[1746995049755,3.99560548,2502.8,2502.6,4.418785]
[1746995049981,3.99560548,2502.8,2502.6,10.350785]
[1746995050274,3.99568466,2502.7,2502.6,8.0]
[1746995051434,3.99560463,2502.8,2502.6,8.0]
[1746995052477,3.99568466,2502.7,2502.6,8.0]
[1746995052879,3.99559497,2502.8,2502.6,8.0]
[1746995053080,3.99543862,2502.9,2502.6,8.0]
[1746995054980,0.7716,2503.2,2502.6,8.52801884]
[1746995055186,4.75050865,2503.5,2502.8,8.0]
[1746995055479,3.99477531,2503.3,2502.7,0.8135]
[1746995056060,0.7726,2503.5,2502.7,0.8135]
[1746995056263,3.99449105,2503.5,2502.7,0.8135]
[1746995056467,3.96919596,2503.9,2502.9,0.7534]
[1746995056667,4.74179596,2503.9,2502.9,0.7534]
[1746995056960,3.99435739,2503.6,2502.9,0.7534]
[1746995057168,3.9941626,2503.7,2502.9,0.7534]
[1746995057662,3.99457975,2503.4,2502.9,0.7534]
[1746995057875,3.99445351,2503.5,2502.9,0.7534]
[1746995058063,3.99445351,2503.5,2502.9,1.19165519]
[1746995058263,3.99445351,2503.5,2502.9,1.23160337]
[1746995058463,3.99425338,2503.6,2502.9,1.23160337]
[1746995058658,3.99425338,2503.6,2503.0,0.7534]
[1746995058859,3.99402934,2503.8,2503.0,0.7534]
[1746995059186,3.99443785,2503.5,2503.2,8.0]
[1746995059418,3.99425732,2503.6,2503.2,9.14504]
[1746995060062,3.99443741,2503.5,2503.2,9.14504]
[1746995060465,3.99432187,2503.6,2503.2,9.14504]
[1746995060671,3.99392922,2503.8,2503.2,9.14504]
[1746995060968,3.99413613,2503.7,2503.3,1.184204]
[1746995061490,3.9942707,2503.6,2503.3,1.184204]
[1746995061797,3.9942707,2503.6,2503.2,8.0]
[1746995063221,3.99444059,2503.5,2503.2,8.0]
[1746995063426,3.96919596,2503.9,2503.2,8.0]
[1746995064280,3.99456624,2503.5,2503.2,8.0]
[1746995064508,3.99457116,2503.4,2503.2,8.0]
[1746995064708,3.99433284,2503.6,2503.2,8.9237785]
[1746995065385,3.99432476,2503.6,2503.2,8.9237785]
[1746995065591,3.99436903,2503.6,2503.2,8.9237785]
[1746995067292,3.99441031,2503.5,2503.2,8.0]
[1746995067716,3.96919596,2503.6,2503.2,8.0]
[1746995069111,3.99472696,2503.3,2503.2,8.0]
[1746995069286,3.99465606,2503.4,2503.2,8.0]
[1746995069696,3.99445954,2503.5,2503.2,8.0]
[1746995070103,3.99427939,2503.6,2503.2,8.0]
[1746995070732,3.99457202,2503.4,2503.2,8.0]
[1746995071800,3.99472696,2503.3,2503.2,8.0]
[1746995072004,3.99457606,2503.4,2502.8,0.757]
[1746995072196,0.7602,2503.8,2502.9,0.03994976]
[1746995072440,3.9948353,2503.3,2502.9,0.03994976]
[1746995072631,3.99408874,2503.7,2502.9,0.87969498]
[1746995072826,3.99482905,2503.3,2502.8,0.757]
[1746995075196,3.96919596,2503.7,2503.0,8.0]
[1746995075403,3.99504614,2503.1,2503.0,8.0]
[1746995075602,3.99561819,2502.8,2502.6,0.7971]
[1746995077041,3.99544713,2502.9,2502.6,0.7971]
[1746995077240,0.7534,2503.1,2502.4,0.83925697]
[1746995077443,4.72259596,2503.1,2502.4,0.83925697]
[1746995077816,3.99567708,2502.8,2502.4,0.83925697]
[1746995078017,3.99544074,2502.9,2502.4,1.99228267]
[1746995078460,0.8094,2503.3,2502.4,1.99228267]
[1746995078621,3.99545652,2502.9,2502.4,1.9523257]
[1746995079254,3.99560547,2502.8,2502.4,0.7993]
[1746995079722,3.9957057,2502.7,2502.4,0.7993]
[1746995079959,3.99544202,2502.9,2502.4,0.7993]
[1746995080646,3.99564635,2502.8,2502.4,0.7993]
[1746995080837,3.99567466,2502.8,2502.4,1.14833]
[1746995081237,3.99568673,2502.7,2502.4,1.14833]
[1746995082167,3.99561297,2502.8,2502.4,1.14833]
[1746995084964,3.99545211,2502.9,2502.4,1.14833]
[1746995085163,3.99511985,2503.1,2502.5,0.03995523]
[1746995085458,3.99522738,2503.0,2502.5,0.03995523]
[1746995085765,3.99504614,2503.1,2502.5,0.38792852]
[1746995085971,3.99529416,2503.0,2502.5,0.38792852]
[1746995086584,3.99510836,2503.1,2502.6,0.8099]
[1746995086765,3.96919596,2503.4,2502.6,0.8099]
[1746995086766,3.99497352,2503.2,2502.6,0.8099]
[1746995087769,3.99497352,2503.2,2502.7,0.03995031]
[1746995088069,3.99480578,2503.3,2502.8,0.8099]
[1746995088270,0.7649,2504.0,2503.5,0.8099]
[1746995088474,3.99405547,2503.8,2503.5,0.8099]
[1746995090377,3.99451339,2503.5,2503.2,0.8099]
[1746995090580,3.99472696,2503.3,2503.0,8.8099]
[1746995092088,0.7649,2503.6,2503.0,8.0]
[1746995092089,3.99493109,2503.2,2503.0,8.0]
[1746995092286,3.99515346,2503.1,2502.9,2.691]
[1746995092592,6.67032657,2503.0,2502.1,0.05]
[1746995092886,3.99594394,2502.6,2502.1,0.8599]
[1746995093085,3.99594394,2502.6,2502.1,1.74589]
[1746995093461,3.99602904,2502.5,2502.1,1.74589]
[1746995096859,3.99623491,2502.4,2502.1,0.05]
[1746995097188,3.99633752,2502.3,2502.1,0.05]
[1746995098584,3.9962674,2502.4,2502.1,0.05]
[1746995100248,3.99636278,2502.3,2502.1,0.05]
[1746995100464,3.99639526,2502.3,2502.1,0.05]
[1746995101063,3.99648309,2502.2,2502.1,0.05]
[1746995101810,8.75050966,2502.2,2502.1,0.05]
[1746995102096,3.99792108,2501.3,2501.2,2.32997816]
[1746995102487,6.68492108,2501.3,2501.2,2.32997816]
[1746995103362,7.45662108,2501.3,2501.2,2.32997816]
[1746995103557,4.76978092,2501.2,2501.1,0.05]
[1746995103764,4.76978092,2501.2,2500.1,0.8501]
[1746995103765,3.99968002,2500.2,2500.1,0.05]
[1746995104067,7.98200659,2500.2,2500.1,0.05]
[1746995105105,3.99968002,2500.2,2500.1,0.05]
[1746995105404,7.98200659,2500.2,2500.1,0.05]
[1746995105806,10.67000659,2500.2,2500.1,0.05]
[1746995109805,13.97160659,2500.2,2500.1,0.05]
[1746995111781,11.28360659,2500.2,2500.1,0.05]
[1746995111977,16.66060659,2500.2,2500.1,0.05]
[1746995112416,2.52,2500.2,2500.1,0.05]
[1746995112624,2.688,2500.7,2500.1,0.05]
[1746995112922,6.68699449,2500.7,2500.1,0.05]
[1746995113066,2.52,2500.8,2500.1,0.05]
[1746995113266,0.7816,2501.3,2500.3,0.7872]
[1746995113506,3.99841611,2501.0,2500.3,0.7872]
[1746995114007,3.99932204,2500.5,2500.1,0.05]
[1746995114192,3.99911742,2500.6,2500.1,0.05]
[1746995114393,6.67032657,2500.7,2500.1,0.05]
[1746995116319,3.99904023,2500.6,2500.1,0.05]
[1746995116628,3.99941285,2500.4,2500.1,0.05]
[1746995116826,3.99956216,2500.3,2500.1,0.05]
[1746995118005,3.99925462,2500.5,2500.2,0.7703]
[1746995118205,2.688,2500.8,2500.2,0.7703]
[1746995118412,3.99896282,2500.7,2500.2,0.7703]
[1746995118619,3.99912517,2500.6,2500.2,0.7703]
[1746995118978,0.7829,2500.9,2500.2,0.7703]
[1746995119179,2.52,2501.0,2500.3,0.03999331]
[1746995119489,3.99806249,2501.3,2500.4,0.7797]
[1746995119735,3.99819136,2501.2,2500.4,1.3297]
[1746995120052,3.99819136,2501.2,2500.5,0.7797]
[1746995121371,3.99828279,2501.1,2500.5,0.7797]
[1746995121867,3.99835825,2501.1,2500.5,0.7797]
[1746995122067,3.99819136,2501.2,2500.5,0.7797]
[1746995122248,3.99824077,2501.1,2500.6,9.80308508]
[1746995122556,3.99824077,2501.1,2500.7,9.79555207]
[1746995122962,3.99824077,2501.1,2500.8,9.70786818]
[1746995123168,3.99824077,2501.1,2500.8,1.70786818]
[1746995123334,3.99824077,2501.1,2500.6,1.11327851]
[1746995123335,3.99824077,2501.1,2500.9,1.67972653]
[1746995124768,3.99824679,2501.1,2500.9,1.67972653]
[1746995130653,3.99817811,2501.2,2500.9,1.67972653]
[1746995131261,4.78382657,2501.5,2500.9,2.64769918]
[1746995131463,6.51652032,2502.2,2501.6,8.0]
[1746995131668,3.99704201,2501.9,2501.7,0.77]
[1746995131874,3.99712207,2501.8,2501.7,1.51456009]
[1746995136438,3.99615309,2502.5,2501.7,1.51456009]
[1746995136743,3.99617541,2502.4,2501.8,10.03032272]
[1746995136944,3.98232657,2502.8,2501.8,9.99035601]
[1746995137183,3.2975,2502.9,2501.8,8.77]
[1746995137184,3.99672853,2502.1,2501.8,8.77]
[1746995137346,3.99656306,2502.2,2501.8,8.77]
[1746995137763,7.97837752,2502.5,2501.8,8.77]
[1746995138138,3.99674743,2502.1,2501.8,8.77]
[1746995138464,3.99655813,2502.2,2501.9,1.02845601]
[1746995139645,3.9966832,2502.1,2501.9,1.02845601]
[1746995140888,3.99656913,2502.2,2501.9,1.02845601]
[1746995142655,3.2975,2502.9,2502.0,0.80996498]
[1746995142856,3.99546928,2502.9,2502.0,0.77]
[1746995143509,2.684,2503.0,2502.0,0.77]
[1746995143672,3.99548388,2502.9,2502.2,0.77]
[1746995143853,3.99548388,2502.9,2502.3,8.0]
[1746995144205,3.99548388,2502.9,2502.4,0.03995573]
[1746995144343,2.734,2503.4,2502.9,3.995483]
[1746995144548,3.99507186,2503.1,2502.4,9.32]
[1746995144807,3.99530645,2503.0,2502.4,10.50855]
[1746995145283,3.99538056,2502.9,2502.4,10.50855]
[1746995145468,3.99507186,2503.1,2502.5,1.439305]
[1746995145469,3.99527912,2503.0,2502.5,1.439305]
[1746995145845,3.99527912,2503.0,2502.5,8.0]
[1746995146042,0.7775,2503.1,2502.4,9.95855]
[1746995146243,8.75488656,2503.1,2502.4,4.64255]
[1746995146479,3.99577862,2502.7,2502.4,3.454]
[1746995147852,3.99559039,2502.8,2502.4,3.454]
[1746995149200,3.99509873,2503.1,2502.4,3.454]
[1746995149352,3.4605,2503.3,2502.5,8.0]
[1746995149551,7.45524261,2503.3,2502.5,8.0]
[1746995149766,7.45524261,2503.3,2502.6,1.1454]
[1746995150079,3.99534611,2503.0,2502.6,1.1454]
[1746995150276,3.9952141,2503.0,2502.6,1.1454]
[1746995153082,3.9952141,2503.0,2502.5,8.0]
[1746995153083,7.97807872,2502.7,2502.5,8.0]
[1746995153398,3.99567575,2502.8,2502.5,8.0]
[1746995153619,3.99580821,2502.7,2502.5,8.0]
[1746995154064,3.99584432,2502.6,2502.5,8.0]
[1746995155691,3.99558603,2502.8,2502.6,2.256608]
[1746995155990,3.99558603,2502.8,2502.5,9.0684]
[1746995156589,3.99504614,2503.1,2502.5,9.0684]
[1746995156798,0.8791,2503.4,2502.6,0.7624]